Cogmind - Beta 15 @@@ ROGUE MODE // 2025.09.13 @ 17:07:42 Player: beans Result: Destroyed by H-55 Commando with Gauss Rifle Performance ------------- Evolutions (3) 1500 Regions Visited (7) 1400 Robots Destroyed (105) 525 Value Destroyed (2768) 2768 Prototype IDs (10) 200 Alien Tech Used (0) 0 Bonus (-211) -211 TOTAL SCORE: 6182 Bonus ------- Follower Combat Kills 518 Friendly Fire -729 Cogmind --------- Core Integrity 0/700 Matter 74/300 Energy 10/100 System Corruption 8% Temperature Hot (220) Movement Core (50) Location -7/Storage Parts ------- > --- POWER (2) -------- (None) > --- PROPULSION (5) --- (None) > --- UTILITY (4) ------ (None) > --- WEAPON (2) ------- (None) > --- INVENTORY (5) ---- Improved Cooling System Advanced ECM Suite System Shield Rocket Launcher Chainsword Peak State ------------ > --- POWER ------------ Light Nuclear Core Enhanced Nuclear Core > --- PROPULSION ------- VTOL Module Improved VTOL Module Improved Cesium-ion Thruster > --- UTILITY ---------- Improved Cooling System Advanced ECM Suite Advanced ECM Suite Hacking Suite > --- WEAPON ----------- Heavy Battle Rifle Bore Cannon > --- INVENTORY -------- Light Nuclear Core System Shield Gatling Laser Heavy Battle Rifle Rocket Launcher [Rating: 44] Favorites ----------- Power Light Nuclear Core Engine Improved Deuterium Engine Power Core Light Nuclear Core Propulsion Improved VTOL Module Treads Light Treads Leg Titanium Leg Flight Unit Improved VTOL Module Utility Transport Network Coupler Device Improved Cooling System Storage Huge Storage Unit Processor Transport Network Coupler Hackware Hacking Suite Protection Core Shielding Weapon Bore Cannon Energy Gun Precision Shock Rifle Energy Cannon Cooled Particle Cannon Ballistic Gun Heavy Battle Rifle Ballistic Cannon Bore Cannon Launcher Rocket Launcher Build | -11 -10 -9 -8 -7 -7 -7 -7 ------- Run | Yrd Mat Mat Mat Fac Was Fac Sto Slots Evolved 6 | . . 2 2 2 . . . Power 1 | . . . 1 . . . . Propulsion 3 | . . 2 1 . . . . Utility 2 | . . . . 2 . . . Weapon . | . . . . . . . . Parts Attached 81 | 4 9 12 24 4 6 12 10 Power 13 | . 1 1 5 . . 3 3 Engine 7 | . 1 1 3 . . 2 . Core 6 | . . . 2 . . 1 3 Reactor . | . . . . . . . . Propulsion 24 | 2 1 9 8 1 . 3 . Treads 4 | 2 1 1 . . . . . Leg 4 | . . 4 . . . . . Wheel . | . . . . . . . . Hover . | . . . . . . . . Flight 16 | . . 4 8 1 . 3 . Utility 16 | . 4 1 1 3 1 4 2 Device 10 | . . 1 . 2 1 4 2 Storage 1 | . 1 . . . . . . Processor 2 | . 1 . 1 . . . . Hackware 1 | . . . . 1 . . . Protection 2 | . 2 . . . . . . Artifact . | . . . . . . . . Weapon 28 | 2 3 1 10 . 5 2 5 Energy Gun 10 | . 3 . 5 . 1 . 1 Energy Cannon 2 | . . . . . . . 2 Ballistic Gun 7 | 2 . . 2 . . 1 2 Ballistic Cannon 4 | . . . 2 . 2 . . Launcher 5 | . . 1 1 . 2 1 . Special Weapon . | . . . . . . . . Impact Weapon . | . . . . . . . . Slashing Weapon . | . . . . . . . . Piercing Weapon . | . . . . . . . . Special Melee Weapon . | . . . . . . . . Unidentified Prototypes 10 | . . . 5 . 1 1 3 Corrupted Parts 3 | . . . 2 1 . . . System Corruption 15 | . . . 11 4 . . . Parts Lost 50 | . 2 2 18 5 3 6 14 Power 9 | . 1 . 3 1 . 1 3 Propulsion 17 | . . 2 8 2 . 2 3 Utility 10 | . 1 . 1 2 1 2 3 Weapon 14 | . . . 6 . 2 1 5 Highest Loss Streak 11 | . 1 1 8 5 1 3 11 To Critical Strikes . | . . . . . . . . Average Backups 4 | 1 2 6 3 3 4 5 4 Power . | . . . . . . . . Propulsion . | . . . . . . . . Utility . | . 1 2 1 . . . 1 Weapon 2 | . . 2 1 2 3 3 2 Tool/Special . | . . . . . . . . Unused Backups 7 | . . 1 2 . 1 . 3 Power . | . . . . . . . . Propulsion . | . . . . . . . . Utility 2 | . . 1 . . . . 1 Weapon 4 | . . . 2 . 1 . 1 Tool/Special 1 | . . . . . . . 1 Average Slot Usage (%) 63 | . 88 79 61 64 32 67 70 Engine 3 | . 11 . 7 4 . 2 . Core 2 | . . . 1 . . 5 11 Treads 5 | . 28 30 . . . . . Flight 13 | . . 4 20 23 4 17 20 Device 9 | . . . 7 8 3 18 16 Storage 1 | . . 10 . . . . . Processor 5 | . 4 11 9 10 7 . . Hackware 3 | . . . . 1 7 7 6 Protection 1 | . 14 . . . . . . Energy Gun 6 | . 7 18 14 . . . . Ballistic Gun 3 | . 20 . . . . 2 8 Ballistic Cannon 5 | . . . . 14 8 12 3 Peak Build Rating 44 | 4 9 20 29 34 26 43 44 Average Rating 22 | 2 6 11 19 25 14 37 36 On Entrance 17 | . 4 9 19 28 24 25 28 Naked Turns 2 | . . . . . . . 2 Heaviest Build 87 | 3 86 87 19 19 20 41 34 Greatest Support 80 | 40 40 80 25 20 14 16 15 Greatest Overweight (x) 28 | . 2 28 4 1 6 3 3 Average Overweight (x) . | . . 1 . . 1 1 . Largest Inventory Capacity 25 | 5 25 25 5 5 5 5 5 Average Capacity 6 | 5 5 23 5 5 5 5 5 Most Carried 10 | 4 7 10 5 4 5 5 5 Average Carried 4 | . 2 6 3 3 4 4 4 Final Capacity 25 | 5 25 5 5 5 5 5 5 Final Carried 7 | . 7 5 4 3 5 5 5 Class Distribution -------------------- 81% | Mutant 10% | Sprinter 8% | Scavenger-Mutant Dominant Class ---------------- Mutant | -10/Materials Mutant | -9/Materials Mutant | -8/Materials Sprinter | -7/Factory Mutant | -7/Waste Mutant | -7/Factory Mutant | -7/Storage Resources | -11 -10 -9 -8 -7 -7 -7 -7 ----------- Run | Yrd Mat Mat Mat Fac Was Fac Sto Matter Collected 2486 | 159 309 119 455 34 425 824 161 Remotely . | . . . . . . . . Salvage Created 3712 | . 394 202 1360 139 263 868 486 Parts 210 | . 25 12 75 7 2 53 36 Haulers Intercepted 5 | . 1 . 3 . . 1 . Recyclers Shooed 10 | . 3 . 1 . . 5 1 Parts Field Recycled . | . . . . . . . . Retrieved Matter . | . . . . . . . . Parts Self-Destructed . | . . . . . . . . Prevented . | . . . . . . . . Kills | -11 -10 -9 -8 -7 -7 -7 -7 ------- Run | Yrd Mat Mat Mat Fac Was Fac Sto Combat Hostiles Destroyed 57 | . 9 7 18 7 1 8 7 Guns 34 | . 9 5 14 . . 1 5 Cannons 12 | . . . 1 7 . 3 1 AOE 8 | . . 1 1 . 1 4 1 Classes Destroyed 16 | . 5 2 5 . 1 2 1 Worker 5 | . 1 . 3 . . 1 . Builder 12 | . 1 . 4 . . 5 2 Tunneler 1 | . . . 1 . . . . Hauler 5 | . 1 . 3 . . 1 . Recycler 10 | . . . 2 . . 6 2 Mechanic 1 | . . . . . . 1 . Operator 4 | . . . 1 1 . 2 . Watcher 6 | . . 1 2 . . 2 1 Swarmer 17 | . 3 3 3 4 . 4 . Grunt 28 | . 6 2 10 1 . 4 5 Duelist 1 | . . . 1 . . . . Sentry 8 | . . 2 3 2 . . 1 Hunter 1 | . . . 1 . . . . Programmer 1 | . . . . . . . 1 Compactor 1 | . . . . . 1 . . Wasp 1 | . . . . . 1 . . Thug 2 | . . . . . . 2 . Savage 1 | . . . . . . 1 . Best Kill Streak 7 | . 6 4 5 4 1 7 4 Combat Bots Only 6 | . 6 4 3 4 1 4 3 Max Kills in Single Turn 4 | . 2 2 3 2 1 4 1 Gunslinging 1 | . . 1 . . . . . Exploded 2 | . . 1 1 . 1 2 1 Melee . | . . . . . . . . Uniques/NPCs Destroyed . | . . . . . . . . Combat | -11 -10 -9 -8 -7 -7 -7 -7 -------- Run | Yrd Mat Mat Mat Fac Was Fac Sto Hostile Shots Fired 538 | . 70 42 155 90 2 42 137 Missed 187 | . 9 11 62 47 . 13 45 Hits 351 | . 61 31 93 43 2 29 92 Melee 2 | . . . . . 2 . . Projectile 349 | . 61 31 93 43 . 29 92 Critical Strikes 6 | . 1 . 3 . . . 2 Actively Blocked 1 | . 1 . . . . . . Damage Taken 5207 | . 746 339 1417 436 281 651 1337 Core 1361 | . 144 62 437 93 177 135 313 Absorbed by Shields . | . . . . . . . . Redirected to Shielding 33 | . 33 . . . . . . Core Remaining (%) 61 | 100 42 84 20 . . . . Volleys Fired 277 | . 50 24 75 17 4 68 39 Largest 2 | . 2 2 2 2 2 2 2 Hottest 180 | . 60 112 112 74 76 96 180 Shots Fired 526 | . 100 42 138 34 7 127 78 Gun 351 | . 100 40 121 . . 30 60 Cannon 162 | . . . 16 34 3 91 18 Launcher 13 | . . 2 1 . 4 6 . Special . | . . . . . . . . Kinetic 349 | . 82 . 38 34 3 121 71 Thermal 104 | . 18 40 39 . . . 7 Explosive 11 | . . 2 . . 3 6 . Electromagnetic 62 | . . . 61 . 1 . . Robot Hit Streak 31 | . 9 10 31 8 5 10 10 Robot Miss Streak 13 | . 2 6 13 8 6 9 6 Penetration Max 1 | . . . . . . 1 . Secondary Targets 9 | . 2 1 4 . . . 2 Max Gunslinging Chain 1 | . 1 1 1 . . . 1 Shots Hit Robots 314 | . 68 22 96 29 5 54 40 Core Hits 200 | . 23 11 68 35 4 35 24 Critical Kills 9 | . . . . . 1 8 . Critical Parts Destroyed 16 | . 1 . . . . 13 2 Critical Strikes 35 | . 1 4 5 . 1 22 2 Burn 6 | . . 4 2 . . . . Destroy 26 | . 1 . . . 1 22 2 Corrupt 3 | . . . 3 . . . . Melee Attacks . | . . . . . . . . Impact . | . . . . . . . . Slashing . | . . . . . . . . Piercing . | . . . . . . . . Sneak Attacks . | . . . . . . . . Combat Hostiles . | . . . . . . . . Follow-up Attacks . | . . . . . . . . Damage Inflicted 7542 | . 753 408 1930 566 501 2351 1033 Guns 3731 | . 753 322 1495 . . 313 848 Cannons 2161 | . . . 199 566 75 1198 123 Explosions 1650 | . . 86 236 . 426 840 62 Melee . | . . . . . . . . Ramming . | . . . . . . . . Kinetic 4069 | . 621 . 459 566 75 1511 837 Thermal 960 | . 132 322 372 . . . 134 Explosive 1414 | . . 86 . . 426 840 62 Electromagnetic 1099 | . . . 1099 . . . . Impact . | . . . . . . . . Slashing . | . . . . . . . . Piercing . | . . . . . . . . Highest Corruption 13 | . . . 13 5 5 7 8 Average Corruption 6 | . . . 11 4 5 6 7 Corruption Purged . | . . . . . . . . Corruption Blocked . | . . . . . . . . Effects 86 | . . . 4 3 15 49 15 Message Errors 22 | . . . 3 2 3 8 6 Matter Fused 17 | . . . . 1 5 11 . Heat Flow Errors 14 | . . . . . . 11 3 Energy Discharges 12 | . . . . . 2 9 1 Parts Rejected 1 | . . . . . . 1 . Data Loss (minor) 9 | . . . 1 . 3 3 2 Data Loss (major) 1 | . . . . . 1 . . Misfires 4 | . . . . . 1 1 2 Alerts 1 | . . . . . . 1 . Weapon Failures 5 | . . . . . . 4 1 Overload Shots 2 | . . . . . . . 2 Overflow Damage 75 | . . . 4 . . 64 7 Projectiles 46 | . . . . . . 46 . Explosions 29 | . . . 4 . . 18 7 Melee . | . . . . . . . . Knockbacks 20 | . . . 8 1 . 10 1 Impact . | . . . . . . . . Kinetic 19 | . . . 7 1 . 10 1 Secondary 1 | . . . 1 . . . . Self-Inflicted Damage 211 | . . . 65 . . 122 24 Shots 6 | . . . 2 . . 3 1 Rammed . | . . . . . . . . Targets Rammed . | . . . . . . . . Kicked . | . . . . . . . . Crushed . | . . . . . . . . Highest Temperature 275 | . 125 175 228 4 . 275 243 Average Temperature 60 | . 35 62 54 3 . 103 70 Received Heat Transfer 1560 | . 363 117 405 33 9 72 561 Effects 2 | . . . . . . 2 . Interference 2 | . . . . . . 2 . Siege Activations . | . . . . . . . . Martial Activations . | . . . . . . . . Shielding Activations . | . . . . . . . . Robots Disrupted . | . . . . . . . . Combat Hostiles . | . . . . . . . . Robots Corrupted 1 | . . . 1 . . . . Combat Hostiles 1 | . . . 1 . . . . Parts Fried 8 | . . . 8 . . . . Impact Corruptions . | . . . . . . . . Robots Melted 2 | . . 1 1 . . . . Combat Hostiles 2 | . . 1 1 . . . . Parts Melted 12 | . . 6 6 . . . . Heat Transferred 2709 | . 300 1110 1012 . . . 287 Parts Sabotaged . | . . . . . . . . Parts Stolen . | . . . . . . . . Parts Stripped . | . . . . . . . . Power Chain Reactions 1 | . . . 1 . . . . Alert | -11 -10 -9 -8 -7 -7 -7 -7 ------- Run | Yrd Mat Mat Mat Fac Was Fac Sto Maximum Alert Level 1 | . . . 1 . . 1 1 Low Security (%) 76 | 100 100 100 88 100 100 34 54 Level 1 23 | . . . 11 . . 65 45 Level 2 . | . . . . . . . . Level 3 . | . . . . . . . . Level 4 . | . . . . . . . . Level 5 . | . . . . . . . . High Security . | . . . . . . . . Max Security . | . . . . . . . . Peak Influence 354 | . 160 102 287 185 79 354 241 Initial 150 | . . 31 22 130 57 . 150 Average 120 | . 74 38 110 153 7 220 192 Influence Increases 2907 | . 267 215 925 165 49 936 350 Destroy 0b10 Robot/C 1320 | . 180 140 360 140 . 360 140 Destroy 0b10 Robot/NC 225 | . 15 5 80 5 . 95 25 Destroy Leader 302 | . 42 42 80 20 . 76 42 Allied During Kill 161 | . . . . . . 161 . Successful Hack 19 | . . . . . . . 19 Disable Machine 195 | . . . 30 . . 105 60 Anti-Garrison Action 150 | . . . 150 . . . . Destroy Structure 235 | . . 13 . . 49 124 49 Partial Spotted 45 | . . . 45 . . . . Lose Combat Pursuer 255 | . 30 15 180 . . 15 15 Influence Decreases 2727 | . 192 235 693 287 214 605 501 Entered New Map 523 | . . 44 33 157 108 . 181 Time Decay 1602 | . 172 181 488 80 76 425 180 Lost Part 482 | . 20 10 172 50 30 60 140 Lost Ally 120 | . . . . . . 120 . Squads Dispatched 22 | . 1 1 5 3 . 7 5 Investigation 2 | . . . . . . 2 . Extermination 3 | . . . . . . 2 1 Reinforcement 13 | . 1 1 3 1 . 3 4 Assault 2 | . . . 2 . . . . Garrison 2 | . . . . 2 . . . Intercept . | . . . . . . . . Searches Triggered . | . . . . . . . . Construction Impeded 2 | . . . . . . 1 1 Haulers Reinforced 2 | . . . . 1 . . 1 Active Scanning Responses . | . . . . . . . . Cargo Convoy Interrupts . | . . . . . . . . Stealth | -11 -10 -9 -8 -7 -7 -7 -7 --------- Run | Yrd Mat Mat Mat Fac Was Fac Sto Distress Signals 8 | . 2 1 2 . . 1 2 Communications Jammed . | . . . . . . . . Distress Signals . | . . . . . . . . Times Spotted 130 | . 16 10 46 8 6 22 22 Peak Tracking Total 11 | . 4 4 11 4 6 4 11 Tactical Retreats 12 | . 2 1 6 . . 1 2 Traps | -11 -10 -9 -8 -7 -7 -7 -7 ------- Run | Yrd Mat Mat Mat Fac Was Fac Sto Traps Triggered 5 | . . . 1 3 . 1 . Indirectly . | . . . . . . . . Trap Hack Attempts . | . . . . . . . . Triggered . | . . . . . . . . Disarmed . | . . . . . . . . Reprogrammed . | . . . . . . . . Reused . | . . . . . . . . Traps Extracted . | . . . . . . . . Installed . | . . . . . . . . Triggered . | . . . . . . . . Machines | -11 -10 -9 -8 -7 -7 -7 -7 ---------- Run | Yrd Mat Mat Mat Fac Was Fac Sto Machines Disabled 14 | . . . 3 . . 7 4 Max in Single Turn 2 | . . . 2 . . 2 1 Garrison Access 1 | . . . 1 . . . . Machines Repaired . | . . . . . . . . Machines Dismantled . | . . . . . . . . Machines Sabotaged . | . . . . . . . . Overloaded Fab Kills . | . . . . . . . . Hacking | -11 -10 -9 -8 -7 -7 -7 -7 --------- Run | Yrd Mat Mat Mat Fac Was Fac Sto Machines Accessed 9 | . . . 1 1 . 4 3 Terminals 7 | . . . 1 . . 3 3 Fabricators 2 | . . . . 1 . 1 . Repair Stations . | . . . . . . . . Recycling Units . | . . . . . . . . Scanalyzers . | . . . . . . . . Garrison Access . | . . . . . . . . Total Hacks 15 | . . . 2 2 . 8 3 Successful 4 | . . . . . . 1 3 Failed 11 | . . . 2 2 . 7 . Catastrophic 1 | . . . . . . 1 . Database Lockouts . | . . . . . . . . Manual 2 | . . . . . . 2 . Terminals 9 | . . . 2 . . 4 3 Fabricators 6 | . . . . 2 . 4 . Repair Stations . | . . . . . . . . Recycling Units . | . . . . . . . . Scanalyzers . | . . . . . . . . Garrison Access . | . . . . . . . . Terminal Hacks 4 | . . . . . . 1 3 Record 1 | . . . . . . . 1 Open Door 2 | . . . . . . . 2 Open DSF 1 | . . . . . . 1 . Fabricator Hacks . | . . . . . . . . Repair Station Hacks . | . . . . . . . . Recycling Unit Hacks . | . . . . . . . . Scanalyzer . | . . . . . . . . Garrison Access Hacks . | . . . . . . . . Unauthorized Hacks . | . . . . . . . . Terminals . | . . . . . . . . Fabricators . | . . . . . . . . Repair Stations . | . . . . . . . . Recycling Units . | . . . . . . . . Scanalyzers . | . . . . . . . . Garrison Access . | . . . . . . . . Data Cores Recovered 1 | . . . . 1 . . . Used . | . . . . . . . . Hacking Detections 7 | . . . . 1 . 3 3 Full Trace Events 1 | . . . . . . 1 . Feedback Events . | . . . . . . . . Feedback Blocked . | . . . . . . . . Robot Schematics Acquired . | . . . . . . . . Robots Built . | . . . . . . . . Authchips . | . . . . . . . . Time . | . . . . . . . . Total Robot Build Rating . | . . . . . . . . Part Schematics Acquired . | . . . . . . . . Parts Built . | . . . . . . . . Authchips . | . . . . . . . . Time . | . . . . . . . . Total Part Build Rating . | . . . . . . . . Parts Repaired . | . . . . . . . . Time . | . . . . . . . . Parts Recycled . | . . . . . . . . Recycled Matter . | . . . . . . . . Retrieved Matter . | . . . . . . . . Retrieved Components . | . . . . . . . . Parts Scanalyzed . | . . . . . . . . Part Schematics Acquired . | . . . . . . . . Parts Damaged . | . . . . . . . . Bothacking | -11 -10 -9 -8 -7 -7 -7 -7 ------------ Run | Yrd Mat Mat Mat Fac Was Fac Sto Used RIF Installer . | . . . . . . . . Robots Hacked . | . . . . . . . . Non-combat . | . . . . . . . . Combat . | . . . . . . . . Robot Hacks Applied . | . . . . . . . . Relay Couplers Released 1 | . . . 1 . . . . Machine Destruction 1 | . . . 1 . . . . Fabnet Peak Effective % . | . . . . . . . . Robots Rewired . | . . . . . . . . Allies Hacked . | . . . . . . . . Hacks Repelled . | . . . . . . . . Allies | -11 -10 -9 -8 -7 -7 -7 -7 -------- Run | Yrd Mat Mat Mat Fac Was Fac Sto Total Allies 19 | . . . . . 19 . . Largest Group 19 | . . . . . 19 10 . Highest-Rated Group 465 | . . . . . 465 296 . Highest-Rated Ally 35 | . . . . . 35 35 . Total Orders . | . . . . . . . . Ally Attacks 204 | . . . . . 120 84 . Total Damage 6538 | . . . . . 4788 1750 . Kills 24 | . . . . . 13 11 . Allies Corrupted . | . . . . . . . . Allies Melted . | . . . . . . . . Intel | -11 -10 -9 -8 -7 -7 -7 -7 ------- Run | Yrd Mat Mat Mat Fac Was Fac Sto Active Infowar (turns) 3140 | . 161 489 1331 162 740 142 115 T.N.C. 3025 | . 161 489 1331 162 740 142 . ECM 115 | . . . . . . . 115 Robot Analysis Total . | . . . . . . . . Derelict Logs Recovered . | . . . . . . . . Drone Launches . | . . . . . . . . Drone Recoveries . | . . . . . . . . Exploration | -11 -10 -9 -8 -7 -7 -7 -7 ------------- Run | Yrd Mat Mat Mat Fac Was Fac Sto Turns Passed 4921 | 40 478 489 1331 162 740 1304 377 Spaces Moved 3199 | 28 187 209 1069 289 591 646 180 Core 390 | 11 . 1 . . 378 . . Treads 321 | 17 187 117 . . . . . Legs 4 | . . 4 . . . . . Wheels . | . . . . . . . . Hover . | . . . . . . . . Flight 2484 | . . 87 1069 289 213 646 180 Fastest Speed 23 | 50 160 26 23 27 29 29 29 Average Speed 113 | 116 164 182 96 32 97 158 96 Slowest Speed 1450 | 160 320 1450 360 102 350 233 233 Overloaded Moves . | . . . . . . . . Propulsion Burnouts . | . . . . . . . . Robots Hopped 14 | . . . 10 2 . . 2 Potential Cave-ins . | . . . . . . . . Cave-ins Triggered . | . . . . . . . . Exploration Rate (%) 34 | 3 33 15 57 9 96 23 42 Regions Visited 7 Branch Regions 1 Pre-discovered Areas . | . . . . . . . . Known Exits Taken . | . . . . . . . . Unknown Exits Taken 5 | 1 1 1 1 . . 1 . Scrap Searched . | . . . . . . . . Spaces Dug . | . . . . . . . . Terrain Destroyed 178 | . . 15 . . 31 91 41 Melee . | . . . . . . . . Projectile 57 | . . . . . 1 36 20 AOE 121 | . . 15 . . 30 55 21 Terrain Rammed . | . . . . . . . . Walls Destroyed . | . . . . . . . . Machines Disabled . | . . . . . . . . Actions | -11 -10 -9 -8 -7 -7 -7 -7 --------- Run | Yrd Mat Mat Mat Fac Was Fac Sto Total 3957 | 35 265 276 1222 321 745 791 302 Wait 296 | . 5 12 29 8 131 55 56 Move 3166 | 27 186 208 1049 285 590 645 176 Hop 13 | . . . 9 2 . . 2 Pick Up 65 | 4 11 11 22 3 5 3 6 Fast Attach 30 | . 3 1 5 . 6 11 4 Attach 55 | 4 3 11 22 5 3 1 6 Detach 8 | . . . 3 1 2 . 2 Swap 15 | . 3 1 1 . 1 2 7 Drop 32 | . 4 8 7 . 3 6 4 Fire 277 | . 50 24 75 17 4 68 39 Melee . | . . . . . . . . Ram . | . . . . . . . . Kick . | . . . . . . . . Crush . | . . . . . . . . Escape Stasis . | . . . . . . . . Rewire . | . . . . . . . . Trap . | . . . . . . . . Miscellaneous . | . . . . . . . . Route ------- -11/Scrapyard -10/Materials -9/Materials -8/Materials -7/Factory -7/Waste -7/Factory -7/Storage History --------- Turn | Location | Event 5 | -11/Scrapyard | Discovered new exit (range 15) 41 | -11/Scrapyard | Entered Materials 248 | -10/Materials | Core integrity fell below 50% 302 | -10/Materials | Build established: Mutant 429 | -10/Materials | Discovered new exit (range 15) 519 | -10/Materials | Entered another Materials area 519 | -9/Materials | Evolved 2 slots: Propulsion x2 976 | -9/Materials | Discovered new exit (range 16) 1008 | -9/Materials | Entered another Materials area 1008 | -8/Materials | Evolved 2 slots: Power x1, Propulsion x1 1155 | -8/Materials | Lost 8 parts (2p4n2w) 1450 | -8/Materials | Build established: Scavenger-Mutant 1873 | -8/Materials | Build established: Mutant 2119 | -8/Materials | Core integrity fell below 50% 2243 | -8/Materials | System corruption reached 10% 2270 | -8/Materials | Lost 3 parts (1n2w) 2333 | -8/Materials | Discovered new exit (range 9) 2339 | -8/Materials | Entered Factory 2339 | -7/Factory | Evolved 2 slots: Utility x2 2389 | -7/Factory | Garrison activated, responded to threat 2467 | -7/Factory | Lost 5 parts (1p2n2u) 2491 | -7/Factory | Discovered new exit (range 16) 2501 | -7/Factory | Sucked down chute 2501 | -7/Factory | Entered Waste 2505 | -7/Waste | Spotted C-40 Crusher 2516 | -7/Waste | Spotted C-40 Crusher 2516 | -7/Waste | Spotted C-40 Crusher 2535 | -7/Waste | Spotted C-40 Crusher 2549 | -7/Waste | Spotted C-40 Crusher 2549 | -7/Waste | Spotted C-40 Crusher 2554 | -7/Waste | Crushed by Compactor (1 part destroyed, 2 dropped) 2591 | -7/Waste | Crushed by Compactor (1 part destroyed, 2 dropped) 2623 | -7/Waste | Discovered new exit (range 13) 2629 | -7/Waste | Warlord forces began an assault 2641 | -7/Waste | Allies destroyed C-40 Crusher 2646 | -7/Waste | Allies destroyed C-40 Crusher 2648 | -7/Waste | Allies destroyed C-40 Crusher 2652 | -7/Waste | Destroyed C-40 Crusher 2660 | -7/Waste | Allies destroyed C-40 Crusher 2662 | -7/Waste | Allies destroyed C-40 Crusher 2691 | -7/Waste | Lost 8 allies 3241 | -7/Waste | Entered Factory 3241 | -7/Factory | Accompanied by 10 allies 3744 | -7/Factory | P-60 Hacker assimilated allied 2Q-4WL(g) 3812 | -7/Factory | Lost 6 allies 4056 | -7/Factory | Core integrity fell below 50% 4543 | -7/Factory | Discovered new exit (range 6) 4545 | -7/Factory | Entered Storage 4557 | -7/Storage | Lost 3 parts (1p1u1w) 4889 | -7/Storage | Core integrity fell below 20% 4922 | -7/Storage | Destroyed by H-55 Commando with Gauss Rifle Last Messages --------------- O-24 Administrator: "IFF HANDSHAKE FAILED. SECURING TERMINAL." Critical hit (Burn: +37). W-25 Informer sends out distress signal. Acquired Chainsword. Adv. ECM Suite destroyed. Acquired Prototype Energy Cannon. Identified Cld. Particle Cannon. W-25 Informer destroyed. Acquired Cld. Particle Cannon. Imp. Cesium-ion Thruster destroyed. ALERT: Hostiles spotted, dispatching reinforcements to Terminal S010. Heavy Doors breached. Slug penetrates Heavy Doors. Imp. VTOL Module destroyed. Dropped Cld. Particle Cannon. System corrupted: Heat flow error (+179). Dropped Cld. Particle Cannon. Slug penetrates Heavy Doors. Map ----- +----------------------------------------------------+ | +??????????????????????????????????????????????? | | #?? ??????????????????????????????????????????? | | #?? ????????????????????????????????????????? | | #?? ????????????????????????????????????????? | | ??? ???????????????????????????????????????? | | #?? ????????????????????????????????????????? | | #?? #????????????????????????????????????????? | | ### #????????????????????????????????????????? | | "##"#% ###??????????????????????????????????????? | | % #??????????????????????????????????????? | | #??????????????????????????????????????? | | #??????????????????????????????????????? | | #??????????????????????????????????????? | | #?????????###??????????????????????????? | | ? ##+#####?? #????????????????????????? | | =##"%#### +? #????????????????????????? | | =# * # # #????????????????????????? | | " # # ? #????????????????????????? | | =# "" / +?? #????????????????????????? | | %# """" # #?? ?????????????????????????? | | !# """" # ####/###????????????????????????? | | %# # ^ +???????????????????????? | | ######## ##?????????????????????????? | | """ #??????????????????????????? | | "#### """ ######?????????????????????? | | ##??# """ #="@]#?????????????????????? | | ????# /!g=]#?????????????????????? | | ????# #*gg]#?????????????????????? | | ????# """"" #T;###?????????????????????? | | ????# """"" ###??##????????????????????? | | ????# """"" ##### #????????????????????? | | ????+ # #????????????????????? | | ????# # """#????????????????????? | | ????# # + """#????????????????????? | | ????# ############ """#????????????????????? | | ????#######???????????# #????????????????????? | | ??????????????????????# #????????????????????? | | ??????????????????????#######????????????????????? | | ?????????????????????????????????????????????????? | | | | | | | | | | | | | | | | | | | | | | | +----------------------------------------------------+ Best States ------------- Heat Dissipation 61 Coolant Potential 65 Energy Generation 27 Energy Capacity 360 Matter Stores 300 Matter Capacity 300 Sight Range 16 Terrain Scan Density 10 ECM Strength 4 Armor Coverage 150 Core Shielding 20 Evasion (%) 72 Target Analysis 5 Recoil Reduction 4 Matter Filtering 30 Kinecelleration 30 Offensive Hacking 10 Item Schematics ----------------- None Robot Schematics ------------------ None Fabricated ------------ Nothing Repaired ---------- Nothing Alien Tech Used ----------------- None Achievements -------------- None Challenges ------------ None Game ------ Seed CobblerPointBiocell Manual? 0 Play Time 00:40:55 Cumulative 137.1 hours Start 2025.09.13 @ 16:25:59 End 2025.09.13 @ 17:07:42 Sessions 1 Manual Loads 0 Difficulty Rogue Special Mode None Game No. 465 Rogue 465 Adventurer 0 Explorer 0 Win Type - Total 0 Types 0/0/0/0/0/0/0/0/0/0 Lore% 51 Gallery% 49 Achievement% 36 Wizard Run 0 Options --------- Layout 2 ASCII 0 Keyboard 0 Movement Mouse Keybinds 0 Fullscreen 1 Font 24/Smallcaps Map View 50x44 Zoom Use 0% Tactical HUD 0 Map Filters NONE Filters NONE Steam 1 RUN: f43fb8dd-ca37-49e3-870c-8920cb1df7de